Cogmind - Beta 13 @@@ ROGUE MODE // 2024.04.13 @ 15:55:55 Player: Zedx Result: Destroyed by X-62 Marksman with Gauss Rifle Performance ------------- Evolutions (2) 1000 Regions Visited (4) 800 Robots Destroyed (66) 330 Value Destroyed (2035) 2035 Prototype IDs (4) 80 Alien Tech Used (0) 0 Bonus (-87) -87 TOTAL SCORE: 4158 Bonus ------- High Alert Combat Kills 44 Follower Combat Kills 25 Friendly Fire -156 Cogmind --------- Core Integrity 0/550 Matter 280/300 Energy 100/100 System Corruption 0% Temperature Cool (0) Movement Core (250) Ox4 Location -8/Materials Parts ------- > --- POWER (2) -------- Faulty Heavy Deuterium Engine > --- PROPULSION (3) --- (None) > --- UTILITY (3) ------ (None) > --- WEAPON (3) ------- Powered Hammer > --- INVENTORY (5) ---- Faulty Heavy Deuterium Engine Peak State ------------ > --- POWER ------------ Light Nuclear Core Heavy Deuterium Engine > --- PROPULSION ------- Improved Aluminum Leg > --- UTILITY ---------- Active Sensor Suite > --- WEAPON ----------- Precision Beam Rifle > --- INVENTORY -------- Heavy Deuterium Engine Improved Datajack [Rating: 41] Favorites ----------- Power Light Ion Engine Engine Light Ion Engine Power Core Light Nuclear Core Reactor Cold Fusion Reactor Propulsion Aluminum Leg Leg Aluminum Leg Utility Small Storage Unit Device Heat Sink Storage Small Storage Unit Weapon Beam Cannon Energy Gun EM Pulse Gun Energy Cannon Beam Cannon Ballistic Gun Shotgun Launcher Grenade Launcher Impact Weapon Powered Hammer Special Melee Weapon Improved Datajack Build | -11 -10 -9 -9 -8 ------- Run | Yrd Mat Mat Sto Mat Slots Evolved 4 | . . 2 . 2 Power 1 | . . 1 . . Propulsion 1 | . . 1 . . Utility 1 | . . . . 1 Weapon 1 | . . . . 1 Parts Attached 62 | 6 7 6 21 22 Power 15 | 1 1 3 6 4 Engine 13 | 1 1 3 5 3 Core 1 | . . . . 1 Reactor 1 | . . . 1 . Propulsion 19 | 2 2 2 5 8 Treads . | . . . . . Leg 19 | 2 2 2 5 8 Wheel . | . . . . . Hover . | . . . . . Flight . | . . . . . Utility 10 | 1 1 1 4 3 Device 9 | . 1 1 4 3 Storage 1 | 1 . . . . Processor . | . . . . . Hackware . | . . . . . Protection . | . . . . . Artifact . | . . . . . Weapon 18 | 2 3 . 6 7 Energy Gun 5 | 1 . . 1 3 Energy Cannon 2 | . 1 . 1 . Ballistic Gun 7 | 1 2 . 2 2 Ballistic Cannon . | . . . . . Launcher 2 | . . . 2 . Special Weapon . | . . . . . Impact Weapon 1 | . . . . 1 Slashing Weapon . | . . . . . Piercing Weapon . | . . . . . Special Melee Weapon 1 | . . . . 1 Unidentified Prototypes 4 | . . . 1 3 Parts Lost 34 | . 2 1 5 26 Power 8 | . . . 3 5 Propulsion 9 | . . . . 9 Utility 6 | . . 1 1 4 Weapon 11 | . 2 . 1 8 Highest Loss Streak 21 | . 2 1 2 21 To Critical Strikes . | . . . . . Average Slot Usage (%) 93 | . 93 98 97 82 Engine 13 | . 14 20 13 9 Reactor 3 | . . . 6 6 Leg 29 | . 27 33 33 23 Device 10 | . 8 11 10 13 Storage 11 | . 14 11 11 8 Energy Gun 5 | . 10 . . 9 Energy Cannon 5 | . 1 11 10 . Ballistic Gun 11 | . 16 11 8 10 Launcher 1 | . . . 2 . Naked Turns . | . . . . . Heaviest Build 36 | 12 13 23 36 35 Greatest Support 35 | 20 20 30 35 35 Greatest Overweight (x) 8 | . 3 . 1 8 Average Overweight (x) . | . . . . . Largest Inventory Capacity 8 | 8 8 8 8 8 Average Capacity 7 | 6 8 8 8 7 Most Carried 8 | 5 8 8 8 8 Average Carried 6 | 1 6 7 7 5 Final Capacity 8 | 8 8 8 8 8 Final Carried 8 | 2 8 8 6 4 Class Distribution -------------------- 60% | Mutant 29% | Scavenger-Mutant 9% | Scavenger-Gunner Dominant Class ---------------- Mutant | -10/Materials Mutant | -9/Materials Scavenger-Mutant | -9/Storage Scavenger-Gunner | -8/Materials Resources | -11 -10 -9 -9 -8 ----------- Run | Yrd Mat Mat Sto Mat Matter Collected 1293 | 227 149 102 448 367 Remotely 337 | . . . . 337 Salvage Created 2192 | . 271 168 1077 676 Parts 135 | . 21 13 68 33 Haulers Intercepted . | . . . . . Recyclers Shooed . | . . . . . Parts Field Recycled . | . . . . . Retrieved Matter . | . . . . . Parts Self-Destructed . | . . . . . Prevented . | . . . . . Kills | -11 -10 -9 -9 -8 ------- Run | Yrd Mat Mat Sto Mat Combat Hostiles Destroyed 59 | . 9 6 29 15 Guns 35 | . 9 2 9 15 Cannons 15 | . . 4 11 . AOE 8 | . . . 8 . Classes Destroyed 13 | . 3 1 6 3 Builder 1 | . . . 1 . Recycler 2 | . . . 2 . Mechanic 1 | . . . 1 . Operator 1 | . . . 1 . Drone 1 | . . . 1 . Watcher 2 | . 1 . 1 . Swarmer 17 | . 6 4 4 3 Grunt 26 | . 3 . 16 7 Brawler 1 | . . . 1 . Duelist 1 | . . . . 1 Sentry 11 | . . 2 8 1 Specialist 2 | . . . . 2 Heavy 1 | . . . . 1 Best Kill Streak 7 | . 3 5 7 3 Combat Bots Only 5 | . 3 5 5 3 Max Kills in Single Turn 2 | . 1 1 2 1 Gunslinging . | . . . . . Exploded 2 | . . . 2 . Melee . | . . . . . Uniques/NPCs Destroyed . | . . . . . Combat | -11 -10 -9 -9 -8 -------- Run | Yrd Mat Mat Sto Mat Hostile Shots Fired 468 | . 85 33 156 194 Missed 154 | . 31 12 47 64 Damage Taken 4617 | . 477 210 1586 2344 Core 1044 | . 108 43 336 557 Absorbed by Shields . | . . . . . Regen/Repaired (Parts) 123 | . . 34 89 . Core Remaining (%) 53 | 100 56 . 5 . Volleys Fired 169 | . 35 11 78 45 Largest 3 | . 2 2 2 3 Hottest 131 | . 80 80 90 131 Shots Fired 318 | . 64 22 136 96 Gun 218 | . 63 11 48 96 Cannon 85 | . 1 11 73 . Launcher 15 | . . . 15 . Special . | . . . . . Kinetic 134 | . 41 11 42 40 Thermal 135 | . 1 11 79 44 Explosive 15 | . . . 15 . Electromagnetic 34 | . 22 . . 12 Robot Hit Streak 17 | . 9 9 17 12 Robot Miss Streak 4 | . 2 1 3 4 Penetration Max . | . . . . . Secondary Targets 3 | . 2 . . 1 Max Gunslinging Chain 1 | . 1 . . 1 Shots Hit Robots 218 | . 38 16 93 71 Core Hits 114 | . 15 9 59 31 Critical Kills 1 | . . . 1 . Critical Parts Destroyed 1 | . . 1 . . Critical Strikes 4 | . . 1 1 2 Burn 2 | . . . . 2 Meltdown 1 | . . . 1 . Destroy 1 | . . 1 . . Melee Attacks . | . . . . . Impact . | . . . . . Slashing . | . . . . . Piercing . | . . . . . Sneak Attacks . | . . . . . Combat Hostiles . | . . . . . Follow-up Attacks . | . . . . . Damage Inflicted 4340 | . 480 213 2529 1118 Guns 2235 | . 480 54 584 1117 Cannons 1045 | . . 159 886 . Explosions 1059 | . . . 1059 . Melee . | . . . . . Ramming 1 | . . . . 1 Kinetic 1254 | . 268 54 525 407 Thermal 1662 | . . 159 945 558 Explosive 1059 | . . . 1059 . Electromagnetic 364 | . 212 . . 152 Impact . | . . . . . Slashing . | . . . . . Piercing . | . . . . . Highest Corruption 2 | . . . 2 . Average Corruption 1 | . . . 1 . Corruption Purged . | . . . . . Corruption Blocked . | . . . . . Effects 12 | . . . 12 . Message Errors 2 | . . . 2 . Matter Fused 3 | . . . 3 . Energy Discharges 2 | . . . 2 . Parts Rejected 1 | . . . 1 . Data Loss (minor) 1 | . . . 1 . Data Loss (major) 1 | . . . 1 . Misfires 1 | . . . 1 . Weapon Failures 1 | . . . 1 . Overload Shots . | . . . . . Overflow Damage 39 | . . . 39 . Projectiles 15 | . . . 15 . Explosions 24 | . . . 24 . Melee . | . . . . . Knockbacks . | . . . . . Impact . | . . . . . Kinetic . | . . . . . Secondary . | . . . . . Self-Inflicted Damage 66 | . . . 66 . Shots 3 | . . . 3 . Rammed . | . . . . . Targets Rammed 1 | . . . . 1 Kicked 1 | . . . . 1 Crushed . | . . . . . Highest Temperature 262 | . 20 65 218 262 Average Temperature 67 | . 15 36 70 71 Received Heat Transfer 1368 | . 90 18 513 747 Siege Activations . | . . . . . Robots Corrupted . | . . . . . Combat Hostiles . | . . . . . Parts Fried . | . . . . . Impact Corruptions . | . . . . . Robots Melted 1 | . . . 1 . Combat Hostiles 1 | . . . 1 . Parts Melted 2 | . . . 1 1 Heat Transferred 3820 | . . 333 2007 1480 Parts Sabotaged . | . . . . . Parts Stolen . | . . . . . Parts Stripped . | . . . . . Power Chain Reactions . | . . . . . Alert | -11 -10 -9 -9 -8 ------- Run | Yrd Mat Mat Sto Mat Peak Influence 465 | . 150 192 465 427 Initial 130 | . . . 76 130 Average 147 | . 54 64 214 220 Maximum Alert Level 2 | . . . 2 2 Low Security (%) 67 | 100 100 100 43 44 Level 1 30 | . . . 52 51 Level 2 2 | . . . 3 4 Level 3 . | . . . . . Level 4 . | . . . . . Level 5 . | . . . . . High Security . | . . . . . Max Security . | . . . . . Squads Dispatched 12 | . 4 . 5 3 Investigation 2 | . 2 . . . Extermination . | . . . . . Reinforcement 7 | . 2 . 2 3 Assault 2 | . . . 2 . Garrison 1 | . . . 1 . Intercept . | . . . . . Searches Triggered . | . . . . . Construction Impeded . | . . . . . Haulers Reinforced . | . . . . . Active Scanning Responses . | . . . . . Cargo Convoy Interrupts . | . . . . . Stealth | -11 -10 -9 -9 -8 --------- Run | Yrd Mat Mat Sto Mat Distress Signals 5 | . 1 1 2 1 Communications Jammed . | . . . . . Distress Signals . | . . . . . Times Spotted 93 | . 14 11 44 24 Peak Tracking Total 7 | . 6 6 7 4 Tactical Retreats 3 | . 1 . 1 1 Traps | -11 -10 -9 -9 -8 ------- Run | Yrd Mat Mat Sto Mat Traps Triggered 3 | . 2 . 1 . Indirectly . | . . . . . Trap Hack Attempts . | . . . . . Triggered . | . . . . . Disarmed . | . . . . . Reprogrammed . | . . . . . Reused . | . . . . . Traps Extracted . | . . . . . Installed . | . . . . . Triggered . | . . . . . Machines | -11 -10 -9 -9 -8 ---------- Run | Yrd Mat Mat Sto Mat Machines Disabled 2 | . . . . 2 Max in Single Turn 1 | . . . . 1 Garrison Access 1 | . . . 1 . Machines Repaired . | . . . . . Machines Dismantled . | . . . . . Machines Sabotaged . | . . . . . Overloaded Fab Kills . | . . . . . Hacking | -11 -10 -9 -9 -8 --------- Run | Yrd Mat Mat Sto Mat Machines Accessed 17 | . 3 3 8 3 Terminals 10 | . 2 . 6 2 Fabricators . | . . . . . Repair Stations 2 | . . 1 1 . Recycling Units 2 | . 1 1 . . Scanalyzers 2 | . . 1 . 1 Garrison Access 1 | . . . 1 . Total Hacks 38 | . 6 9 16 7 Successful 24 | . 2 6 10 6 Failed 14 | . 4 3 6 1 Catastrophic 4 | . . . 3 1 Database Lockouts . | . . . . . Manual 3 | . . . 2 1 Terminals 17 | . 4 . 10 3 Fabricators . | . . . . . Repair Stations 7 | . . 2 5 . Recycling Units 6 | . 2 4 . . Scanalyzers 7 | . . 3 . 4 Garrison Access 1 | . . . 1 . Terminal Hacks 10 | . 2 . 6 2 Record 1 | . . . . 1 Open Door 2 | . . . 2 . Alert Level 3 | . . . 2 1 Unreport Threat 2 | . . . 2 . Locate Traps 1 | . 1 . . . Recall Investigation 1 | . 1 . . . Fabricator Hacks . | . . . . . Repair Station Hacks 5 | . . 2 3 . Scan Component 3 | . . 1 2 . Repair 2 | . . 1 1 . Recycling Unit Hacks 3 | . . 3 . . Report Inventory 2 | . . 2 . . Retrieve Components 1 | . . 1 . . Scanalyzer 5 | . . 1 . 4 Insert Component 3 | . . 1 . 2 Analyze 2 | . . . . 2 Garrison Access Hacks 1 | . . . 1 . Seal Access 1 | . . . 1 . Unauthorized Hacks . | . . . . . Terminals . | . . . . . Fabricators . | . . . . . Repair Stations . | . . . . . Recycling Units . | . . . . . Scanalyzers . | . . . . . Garrison Access . | . . . . . Data Cores Recovered 1 | . . . 1 . Used . | . . . . . Hacking Detections 14 | . 3 3 5 3 Full Trace Events . | . . . . . Feedback Events . | . . . . . Feedback Blocked . | . . . . . Robot Schematics Acquired . | . . . . . Robots Built . | . . . . . Authchips . | . . . . . Time . | . . . . . Total Robot Build Rating . | . . . . . Part Schematics Acquired 2 | . . . . 2 Parts Built . | . . . . . Authchips . | . . . . . Time . | . . . . . Total Part Build Rating . | . . . . . Parts Repaired 2 | . . 1 1 . Time 64 | . . 26 38 . Parts Recycled . | . . . . . Recycled Matter . | . . . . . Retrieved Matter . | . . . . . Retrieved Components 7 | . . 7 . . Parts Scanalyzed 2 | . . . . 2 Part Schematics Acquired 2 | . . . . 2 Parts Damaged . | . . . . . Bothacking | -11 -10 -9 -9 -8 ------------ Run | Yrd Mat Mat Sto Mat Used RIF Installer . | . . . . . Robots Hacked . | . . . . . Non-combat . | . . . . . Combat . | . . . . . Robot Hacks Applied . | . . . . . Relay Couplers Released . | . . . . . Fabnet Peak Effective % . | . . . . . Robots Rewired . | . . . . . Allies Hacked . | . . . . . Hacks Repelled . | . . . . . Allies | -11 -10 -9 -9 -8 -------- Run | Yrd Mat Mat Sto Mat Total Allies 2 | . . . 2 . Largest Group 2 | . . . 2 . Highest-Rated Group 62 | . . . 62 . Highest-Rated Ally 31 | . . . 31 . Total Orders 6 | . . . 6 . STAY 1 | . . . 1 . EXPLORE 2 | . . . 2 . RETURN 3 | . . . 3 . Ally Attacks 22 | . . . 22 . Total Damage 360 | . . . 360 . Kills 1 | . . . 1 . Allies Corrupted . | . . . . . Allies Melted . | . . . . . Intel | -11 -10 -9 -9 -8 ------- Run | Yrd Mat Mat Sto Mat Robot Analysis Total . | . . . . . Derelict Logs Recovered . | . . . . . Drone Launches 5 | . . . 5 . Drone Recoveries 3 | . . . 3 . Exploration | -11 -10 -9 -9 -8 ------------- Run | Yrd Mat Mat Sto Mat Turns Passed 2842 | 62 829 313 1082 556 Spaces Moved 1351 | 46 291 199 524 291 Core 15 | 10 2 . . 3 Treads . | . . . . . Legs 1336 | 36 289 199 524 288 Wheels . | . . . . . Hover . | . . . . . Flight . | . . . . . Fastest Speed 50 | 50 120 120 120 120 Average Speed 126 | 104 120 120 133 128 Slowest Speed 450 | 120 200 120 190 450 Overloaded Moves . | . . . . . Propulsion Burnouts . | . . . . . Robots Hopped . | . . . . . Cave-ins Triggered . | . . . . . Exploration Rate (%) 36 | 3 62 20 70 29 Regions Visited 4 Branch Regions 1 Pre-discovered Areas . | . . . . . Known Exits Taken . | . . . . . Unknown Exits Taken 4 | 1 1 1 1 . Scrap Searched . | . . . . . Spaces Dug . | . . . . . Terrain Destroyed 96 | . . . 96 . Melee . | . . . . . Projectile . | . . . . . AOE 96 | . . . 96 . Terrain Rammed . | . . . . . Walls Destroyed . | . . . . . Machines Disabled . | . . . . . Actions | -11 -10 -9 -9 -8 --------- Run | Yrd Mat Mat Sto Mat Total 2186 | 60 711 256 774 385 Wait 508 | 1 356 30 121 . Move 1347 | 45 290 198 523 291 Hop . | . . . . . Pick Up 66 | 8 15 7 16 20 Fast Attach . | . . . . . Attach 45 | 6 6 4 9 20 Detach 4 | . 2 1 1 . Swap 17 | . 1 2 12 2 Drop 26 | . 6 3 12 5 Fire 169 | . 35 11 78 45 Melee . | . . . . . Ram . | . . . . . Kick 1 | . . . . 1 Crush . | . . . . . Escape Stasis . | . . . . . Rewire 3 | . . . 2 1 Trap . | . . . . . Miscellaneous . | . . . . . Route ------- -11/Scrapyard -10/Materials (discovered 2 exits: *Mat / [*Min]) -9/Materials -9/Storage -8/Materials History --------- Turn | Location | Event 6 | -11/Scrapyard | Discovered new exit (range 15) 63 | -11/Scrapyard | Entered Materials 311 | -10/Materials | Build established: Mutant 769 | -10/Materials | Discovered new exit (range 13) 871 | -10/Materials | Discovered new exit (range 7) 892 | -10/Materials | Entered another Materials area 892 | -9/Materials | Evolved 2 slots: Power x1, Propulsion x1 1013 | -9/Materials | Repaired Lgt. Ion Engine 1193 | -9/Materials | Discovered new exit (range 4) 1205 | -9/Materials | Entered Storage 1247 | -9/Storage | Met a pair of Derelict thieves 1400 | -9/Storage | Lost 4 allies 1725 | -9/Storage | Garrison activated, responded to threat 1727 | -9/Storage | Build established: Scavenger-Mutant 1760 | -9/Storage | Core integrity fell below 50% 1930 | -9/Storage | Repaired Carbon-fiber Leg 2211 | -9/Storage | Core integrity fell below 20% 2274 | -9/Storage | Discovered new exit (range 12) 2287 | -9/Storage | Entered Materials 2287 | -8/Materials | Evolved 2 slots: Utility x1, Weapon x1 2620 | -8/Materials | Lost 3 parts (1n2w) 2798 | -8/Materials | Found Prototype Device 2801 | -8/Materials | Identified Active Sensor Suite 2818 | -8/Materials | Core integrity fell below 50% 2839 | -8/Materials | Core integrity fell below 20% 2843 | -8/Materials | Destroyed by X-62 Marksman with Gauss Rifle Last Messages --------------- 02810_ Slug penetrates Wall. 02810_ Critical hit (Burn: +37). 02810_ Penetrated by Slug. 02811_ K-01 Serf collects debris. 02813_ Active Sensor Suite destroyed. 02815_ K-01 Serf collects debris. 02817_ Slug penetrates Wall. 02822_ Acquired Faulty Hvy. Deuterium Engine. 02829_ Acquired Powered Hammer. 02831_ Penetrated by Slug. 02831_ Imp. Aluminum Leg destroyed. 02831_ Slug penetrates G-47 Trooper. 02831_ Faulty integration triggers energy drain (-98). 02834_ Penetrated by Slug. 02837_ Imp. Datajack destroyed. 02837_ Penetrated by Slug. 02837_ Hvy. Deuterium Engine destroyed. 02840_ Penetrated by Slug. Map ----- +----------------------------------------------------+ | ???????? ??# "" #?????????????????????????? | | ??#######+####! [ """#?????????????????????????? | | ??# # "#?????????????????????????? | | ??+ + """ =! ## ###????????????????????? | | ??# # """ %[ + ?????????????? | | ??# ###### # """ **[%##+###????????????????????? | | ??# #????# # % %=!% #?????????????????????????? | | ??# #????# # ##+######?????????????????????????? | | ##" #????# #### #??????????????????????????????? | | #????# #??# #??????????????????????????????? | | #????# #??# #############??????????????????? | | #????# #??# + """ """ #??????????????????? | | ####"######? ???##### " """ #??????????????????? | | ## ???????# % " """ #??????????????????? | | ## ???????#* #??????????????????? | | ## ???????# #??????????????????? | | ## ???????# #??????????????????? | | ## ???????# #??????????????????? | | = ## ???????# #??????????????????? | | [ ## #####?######+#####??????????????????? | | #######+### ####### !#????????????????????? | | x% ##???????????????????? | | x% ##???????????????????? | | % g ##???????????????????? | | ??????#+### #######g #????????????????????? | | ??????????## ##????## @ ##???????????????????? | | ???????????# *%#?????## #???????????????????? | | ???????????# #??????# !! /#???????????????????? | | ???????????# ##?????# %!!//#???????????????????? | | ???????????# "#?????########???????????????????? | | ???????????# ##??????###???????????????????????? | | ???????????# #?????????????????????????????????? | | ???????????# #?????????????????????????????????? | | ???######??# #?????????????????????????????????? | | ???# # #?????????????????????????????????? | | ???# + #?????????????????????????????????? | | ???# # #?????????????????????????????????? | | ???#########% #?????????????????????????????????? | | ???????????# #?????????????????????????????????? | | ??????????# #????????????????????????????????? | | ??????????# ???????????????????????????????? | | ??????????# T ??????????????????????????????? | | ??????????# ?????????????????????????????? | | ??????????# ###+#????????????????????????????? | | ??????????#######????????????????????????????????? | | ?????????????????????????????????????????????????? | | ?????????????????????????????????????????????????? | | ?????????????????????????????????????????????????? | | ?????????????????????????????????????????????????? | | ?????????????????????????????????????????????????? | +----------------------------------------------------+ Best States ------------- Heat Dissipation 41 Energy Generation 30 Energy Capacity 415 Matter Stores 300 Matter Capacity 300 Sight Range 16 Robot Scan Range 20 Terrain Scan Density 10 Evasion (%) 55 Item Schematics ----------------- Arm. Treads | -8/Materials | Scanalyzed Aluminum Leg | -8/Materials | Scanalyzed Robot Schematics ------------------ None Fabricated ------------ Nothing Alien Tech Used ----------------- None Achievements -------------- I Spy Let's See Who's Tougher Safety First Use The Force Challenges ------------ None Game ------ Seed ShrapnelControlBuckler Manual? 0 Play Time 00:50:00 Cumulative 6.4 hours Start 2024.04.11 @ 16:42:36 End 2024.04.13 @ 15:55:55 Sessions 3 Manual Loads 0 Difficulty Rogue Special Mode None Game No. 12 Rogue 12 Adventurer 0 Explorer 0 Win Type - Total 0 Types 0/0/0/0/0/0/0/0/0 Lore% 13 Gallery% 12 Achievement% 11 Wizard Run 0 Options --------- Layout 1 ASCII 0 Keyboard 1 Movement Numpad Keybinds 0 Fullscreen 1 Font 24/Smallcaps Map View 50x35 Zoom Use 0% Tactical HUD 1 Map Filters NONE Filters NONE Steam 1 RUN: a6da50ed-43bf-4816-a5a3-5fac6fe03c09